fUST/lending_fUST_20240104
["ID","MTS","AMOUNT","RATE_DAILY","PERIOD"]
[310092945,1704322246886,-333.34,0.00035299,2]
[310092946,1704322246896,-255.47481132,0.00035299,2]
[310092947,1704322246905,-470.35299592,0.00035299,2]
[310092948,1704322246914,-333.34,0.00035299,2]
[310092949,1704322246924,-332.59,0.00035299,2]
[310092950,1704322246933,-333.09,0.00035299,2]
[310092951,1704322246942,-333.09,0.00035299,2]
[310092952,1704322246952,-132029.69426364,0.000353,2]
[310092953,1704322246961,-298.085254,0.000353,2]
[310092954,1704322246970,-298.085254,0.000353,2]
[310092955,1704322246979,-155.18514978,0.00035397,4]
[310092956,1704322246988,-301.01435157,0.00035397,4]
[310092957,1704322246998,-408.16763024,0.00035397,4]
[310092958,1704322247007,-283.0281245,0.00035397,4]
[310092959,1704322247016,-6203.88876914,0.00035397,4]
[310092960,1704322247025,-155.89465043,0.00035397,4]
[310092961,1704322247035,-223.89486796,0.00035397,4]
[310092962,1704322247044,-673.69031956,0.00035397,4]
[310092963,1704322247054,-321.64598912,0.00035397,4]
[310092964,1704322247064,-208.54946804,0.00035397,4]
[310092965,1704322247073,-1574.74418664,0.00035397,4]
[310092966,1704322247082,-178.03149046,0.00035397,4]
[310092967,1704322247091,-309.64391646,0.00035397,4]
[310092968,1704322247100,-173.55861276,0.00035397,4]
[310092969,1704322247110,-200.0,0.00035397,4]
[310092970,1704322247119,-451.07921998,0.00035397,4]
[310092971,1704322247129,-195.52961535,0.00035398,4]
[310092972,1704322247139,-289.09860941,0.00035398,4]
[310092973,1704322247148,-197.30333957,0.00035398,4]
[310092974,1704322247157,-190.15492254,0.00035398,4]
[310092975,1704322247167,-856.16609372,0.00035398,4]
[310092976,1704322247176,-3622.30047657,0.00035398,4]
[310092977,1704322247185,-192.19396299,0.00035398,4]
[310092978,1704322247194,-157.00863236,0.00035398,4]
[310092979,1704322247204,-483.94187289,0.00035498,2]
[310092980,1704322247213,-578.33832584,0.00035498,2]
[310092981,1704322247222,-3893.10032845,0.00035498,4]
[310092982,1704322247232,-2777.46895919,0.00035498,4]
[310092983,1704322247241,-151.0,0.00035498,2]
[310092984,1704322247251,-409.461507,0.00035498,2]
[310092985,1704322247260,-409.461507,0.00035498,2]
[310092986,1704322247269,-298.085254,0.00035498,2]
[310092987,1704322247278,-298.085254,0.00035498,2]
[310092988,1704322247287,-440.15659309,0.00035499,4]
[310092989,1704322247297,-46978.44184389,0.000355,14]
[310092990,1704322247306,-151.0,0.000355,2]
[310092991,1704322247316,-409.461507,0.000355,2]
[310092992,1704322247325,-409.461507,0.000355,2]
[310092993,1704322247334,-298.085254,0.000355,2]
[310092994,1704322247343,-298.085254,0.000355,2]
[310092995,1704322247352,-359.865063,0.00035616,120]
[310092996,1704322247362,-1089.819721,0.00035798,2]
[310092997,1704322247371,-1000.0,0.000358,2]
[310092998,1704322247380,-232.57470138,0.000359,4]
[310092999,1704322247389,-216.56690092,0.00035999,4]
[310093000,1704322247398,-500.0,0.00035999,4]
[310093001,1704322247407,-548.79793384,0.00035999,4]
[310093002,1704322247417,-226.23989381,0.00035999,4]
[310093003,1704322247427,-28077.48842172,0.00036,4]
[310093004,1704322247436,-639.11880307,0.00036,30]
[310093005,1704322247445,-151.0,0.00036,2]
[310093006,1704322247454,-409.461507,0.00036,2]
[310093007,1704322247464,-409.461507,0.00036,2]
[310093008,1704322247473,-298.085254,0.00036,2]
[310093009,1704322247482,-298.085254,0.00036,2]
[310093010,1704322247491,-253.03503331,0.0003624,2]
[310093011,1704322247500,-153.0,0.00036281,2]
[310093012,1704322247509,-280.0,0.00036711,15]
[310093013,1704322247519,-1000.0,0.000368,2]
[310093014,1704322247528,-151.0,0.00037008,2]
[310093015,1704322247537,-1089.819721,0.00037075,2]
[310093016,1704322247546,-331.83,0.00037999,2]
[310093017,1704322247556,-339.37,0.00037999,2]
[310093018,1704322247566,-232.47242991,0.00038,3]
[310093019,1704322247575,-76496.84545433,0.00038,30]
[310093020,1704322247584,-62764.8684449,0.00038,10]
[310093022,1704322585683,-500000.0,0.00048247,30]
[310093023,1704322601335,-500000.0,0.00048247,30]
[310093024,1704322641402,-500000.0,0.00048247,30]
[310093025,1704322663688,-4921.43746771,0.00032,30]
[310093026,1704322663711,-183.74133472,0.00032,50]
[310093027,1704322663737,-269.898797,0.00035616,120]
[310093028,1704322663760,-200.0,0.00037777,30]
[310093029,1704322663788,-250.0,0.00038495,30]
[310093030,1704322663811,-161.12,0.00039166,60]
[310093031,1704322663852,-150.0,0.00039347,60]
[310093032,1704322663877,-150.0,0.00039357,60]
[310093033,1704322663904,-262.23,0.00039445,60]
[310093034,1704322663931,-795.13992855,0.00039955,30]
[310093035,1704322663957,-16622.84047477,0.00039989,30]
[310093036,1704322663982,-336300.0,0.0003999,60]
[310093037,1704322664009,-48000.0,0.0004,120]
[310093038,1704322664034,-2816.49098564,0.0004,30]
[310093039,1704322664060,-1000.0,0.00041,41]
[310093040,1704322664085,-269.898797,0.00041553,120]
[310093041,1704322664110,-1000.0,0.00042,42]
[310093042,1704322664135,-350.0,0.00042344,30]
[310093043,1704322664158,-1000.0,0.00043,43]
[310093044,1704322664182,-1000.0,0.00044,44]
[310093045,1704322664205,-1093.39872623,0.00044,90]
[310093046,1704322664228,-1329.0,0.00044189,39]
[310093047,1704322664253,-2000.0,0.000444,34]
[310093048,1704322664276,-2000.0,0.0004441,34]
[310093049,1704322664299,-2000.0,0.0004442,34]
[310093050,1704322664321,-2000.0,0.0004443,34]
[310093051,1704322664344,-2000.0,0.0004444,34]
[310093052,1704322664453,-2000.0,0.0004445,34]
[310093053,1704322664479,-2000.0,0.0004446,34]
[310093054,1704322664502,-2000.0,0.0004447,34]
[310093055,1704322664526,-2000.0,0.0004448,34]
[310093056,1704322664552,-2000.0,0.0004449,34]
[310093057,1704322664580,-2000.0,0.000445,34]
[310093058,1704322664606,-2000.0,0.0004451,34]
[310093059,1704322664630,-2000.0,0.0004452,34]
[310093060,1704322664655,-2000.0,0.0004453,34]
[310093061,1704322664682,-2556.293917,0.0004454,34]
[310093062,1704322664708,-2000.0,0.000446,34]
[310093063,1704322664732,-2000.0,0.0004461,34]
[310093064,1704322664757,-2000.0,0.0004462,34]
[310093065,1704322664780,-2000.0,0.0004463,34]
[310093066,1704322664807,-3611.391688,0.0004464,35]
[310093067,1704322664834,-1349.0,0.00044797,49]
[310093068,1704322664858,-794.90477023,0.000448,120]
[310093069,1704322664883,-156.0,0.00044877,90]
[310093070,1704322664908,-7215.82199052,0.000449,120]
[310093071,1704322664932,-272.74205395,0.00044998,30]
[310093072,1704322664957,-155.28124419,0.00044998,30]
[310093073,1704322664980,-217.87196814,0.00044999,30]
[310093074,1704322665003,-281.43483786,0.00044999,30]
[310093075,1704322665032,-311.27736913,0.00044999,30]
[310093076,1704322665068,-1000.0,0.00045,45]
[310093077,1704322665106,-2669.0898342,0.00045,30]
[310093078,1704322665140,-169.91421862,0.00045,30]
[310093079,1704322665175,-2138.62,0.00045,60]
[310093080,1704322665212,-22975.15959654,0.00045,120]
[310093083,1704323215103,-154.87609912,0.00029992,4]
[310093084,1704323215123,-11.79056688,0.00029993,2]
[310093125,1704323432555,-344.31973606,0.00029668,2]
[310093127,1704323432565,-154.87609912,0.00029669,2]
[310093129,1704323432574,-924.18644533,0.00029669,2]
[310093131,1704323432584,-166.666666,0.0002967,2]
[310093133,1704323432592,-1320.81396188,0.000297,2]
[310093135,1704323432602,-154.87609912,0.00029982,2]
[310093137,1704323432610,-321.94449774,0.00029999,2]
[310093139,1704323432619,-154.78330338,0.0003,5]
[310093140,1704323432628,-243.26967795,0.0003,4]
[310093142,1704323432637,-200.0,0.00030043,15]
[310093144,1704323432647,-166.666666,0.00030681,2]
[310093146,1704323432656,-154.87609912,0.00030759,2]
[310093148,1704323432665,-7025.05114454,0.00030855,4]
[310093150,1704323432674,-421.16298282,0.00030856,4]
[310093152,1704323432683,-758.6760814,0.00030856,4]
[310093154,1704323432692,-398.85443675,0.00030857,4]
[310093156,1704323432702,-2768.44943562,0.00030859,4]
[310093158,1704323432711,-1869.48188147,0.0003086,4]
[310093159,1704323432720,-166.666666,0.00031692,2]
[310093162,1704323432731,-154.87609912,0.00031846,5]
[310093163,1704323432741,-171.0,0.00032,2]
[310093165,1704323432749,-2924.38985001,0.00032,10]
[310093167,1704323432758,-998.90120867,0.00032241,2]
[310093169,1704323432767,-24900.0,0.00032243,2]
[310093171,1704323432776,-174.513544,0.0003239,2]
[310093173,1704323432785,-166.666666,0.00032703,2]
[310093175,1704323432794,-169.0,0.00033,2]
[310093177,1704323432804,-166.666666,0.00033714,2]
[310093179,1704323432813,-200.0,0.00033939,15]
[310093181,1704323432822,-4657.66153763,0.0003452,2]
[310093183,1704323432831,-1000.0,0.0003452,7]
[310093185,1704323432841,-2477.332952,0.00034521,2]
[310093187,1704323432851,-155.37221196,0.00034999,4]
[310093189,1704323432861,-590.27084275,0.00035447,2]
[310093191,1704323432870,-154.87609912,0.00035448,6]
[310093193,1704323432880,-331.97293247,0.00035449,4]
[310093195,1704323432889,-4177.42015254,0.0003545,4]
[310093196,1704323432898,-519.0,0.00035452,2]
[310093198,1704323432908,-619.781256,0.00035616,120]
[310093200,1704323432917,-2477.332952,0.00035798,2]
[310093202,1704323432926,-464.41430275,0.00035899,4]
[310093204,1704323432937,-1255.72897744,0.00035899,4]
[310093464,1704323438946,-1454.45537407,0.00035,14]
[310093466,1704323438956,-1681.90075354,0.00035899,4]
[310093469,1704323438966,-795.13992855,0.00035899,30]
[310093471,1704323438975,-764.36,0.00035989,3]
[310093473,1704323438984,-232.57470138,0.00035999,4]
[310093475,1704323438995,-229.99225833,0.00036,4]
[310093477,1704323439004,-917.24,0.00037065,3]
[310093479,1704323439012,-2477.332952,0.00037075,2]
[310093480,1704323439022,-280.0,0.00037333,15]
[310093482,1704323439031,-814.64908055,0.00037894,5]
[310093485,1704323439041,-2658.20930316,0.00037894,2]
[310093487,1704323439051,-619.28495955,0.00037998,4]
[310093489,1704323439060,-1215.78150493,0.00037999,4]
[310093491,1704323439069,-6509.56024082,0.00038,10]
[310093493,1704323439079,-541.19183557,0.00038,4]
[310093495,1704323439088,-495.36101999,0.00038,120]
[310093497,1704323439097,-175.0,0.00038352,2]
[310093499,1704323439106,-2477.332952,0.00038352,2]
[310093501,1704323439115,-500.0,0.00038356,2]
[310093503,1704323439125,-623.31108552,0.00038667,2]
[310093505,1704323439134,-569.0,0.0003874,2]
[310093507,1704323439144,-1000.0,0.000388,2]
[310093509,1704323439153,-177.0,0.0003886,2]
[310093511,1704323439162,-155.0,0.0003889,2]
[310093513,1704323439171,-154.87609912,0.00039,4]
[310093515,1704323439180,-214.48317282,0.00039188,4]
[310093517,1704323439189,-2173.52794317,0.00039488,2]
[310093518,1704323439199,-1451.77253825,0.00039496,2]
[310093521,1704323439208,-5000.0,0.00039496,7]
[310093530,1704323439218,-9515.46045817,0.00039496,2]
[310093532,1704323439302,-580.1904346,0.00039496,2]
[310093534,1704323439311,-2121.3770566,0.00039496,2]
[310093536,1704323439320,-2477.332952,0.0003963,2]
[310093538,1704323439331,-154.85858528,0.00039788,2]
[310093540,1704323439340,-679.37734518,0.00039848,4]
[310093543,1704323439349,-155.28489884,0.00039887,4]
[310093545,1704323439359,-309.67496581,0.00039888,4]
[310093547,1704323439368,-404.18461016,0.00039888,4]
[310093549,1704323439378,-362.07678307,0.00039888,4]
[310093550,1704323439387,-1078.65782774,0.00039888,4]
[310093551,1704323439396,-641.42095347,0.00039888,4]
[310093552,1704323439405,-308.50835343,0.00039888,4]
[310093553,1704323439414,-2213.63910466,0.00039888,4]
[310093554,1704323439423,-440.15659309,0.00039888,4]
[310093555,1704323439432,-192.19396299,0.00039888,4]
[310093556,1704323439441,-2777.46895919,0.00039888,4]
[310093557,1704323439450,-155.18514978,0.00039888,4]
[310093558,1704323439459,-301.01435157,0.00039888,4]
[310093559,1704323439468,-197.30333957,0.00039888,4]
[310093560,1704323439477,-856.16609372,0.00039888,4]
[310093561,1704323439488,-283.0281245,0.00039888,4]
[310093562,1704323439497,-190.15492254,0.00039888,4]
[310093563,1704323439506,-155.89465043,0.00039888,4]
[310093564,1704323439515,-157.00863236,0.00039888,4]
[310093565,1704323439524,-289.09860941,0.00039888,4]
[310093566,1704323439533,-408.16763024,0.00039888,4]
[310093567,1704323439542,-578.33832584,0.00039888,2]
[310093568,1704323439551,-451.07921998,0.00039888,4]
[310093569,1704323439559,-208.54946804,0.00039888,4]
[310093570,1704323439568,-200.0,0.00039888,4]
[310093571,1704323439577,-673.69031956,0.00039888,4]
[310093572,1704323439586,-309.64391646,0.00039888,4]
[310093573,1704323439596,-483.94187289,0.00039888,2]
[310093574,1704323439605,-155.34994199,0.00039888,2]
[310093576,1704323439614,-1959.8295184,0.00039888,30]
[310093578,1704323439623,-223.89486796,0.00039888,4]
[310093580,1704323439632,-246.61662875,0.00039888,4]
[310093582,1704323439641,-623.47978173,0.00039888,4]
[310093584,1704323439651,-176.29639192,0.00039888,4]
[310093586,1704323439660,-2371.03879565,0.00039888,4]
[310093588,1704323439669,-614.77783664,0.00039888,4]
[310093590,1704323439678,-605.76569504,0.00039888,4]
[310093592,1704323439687,-552.67028629,0.00039888,4]
[310093594,1704323439696,-177.9496353,0.00039888,4]
[310093596,1704323439706,-398.07350448,0.00039888,4]
[310093598,1704323439715,-260.46874,0.00039888,4]
[310093600,1704323439724,-399.60742015,0.00039888,4]
[310093602,1704323439733,-190.72300866,0.00039888,4]
[310093604,1704323439745,-781.90839515,0.00039888,5]
[310093607,1704323439754,-284.62334925,0.00039888,4]
[310093608,1704323439763,-633.95978408,0.00039888,4]
[310093611,1704323439773,-638.44894353,0.00039888,4]
[310093612,1704323439782,-2009.95199644,0.00039888,4]
[310093614,1704323439791,-500.0,0.00039889,2]
[310093617,1704323439801,-500.0,0.00039889,2]
[310093618,1704323439810,-222.23122218,0.00039889,2]
[310093621,1704323439819,-300.53646519,0.00039889,2]
[310093623,1704323439829,-218.2,0.00039889,2]
[310093625,1704323439838,-168.01,0.00039889,2]
[310093627,1704323439846,-168.01,0.00039889,2]
[310093628,1704323439856,-168.01,0.00039889,2]
[310093630,1704323439866,-168.01,0.00039889,2]
[310093633,1704323439875,-168.01,0.00039889,2]
[310093634,1704323439884,-168.01,0.00039889,2]
[310093636,1704323439893,-39646.39400617,0.0003989,2]
[310093880,1704323441812,-1134.70403783,0.0003989,2]
[310094381,1704323446678,-1231.01563929,0.00039879,4]
[310094383,1704323446688,-1286.8524122,0.00039879,4]
[310094385,1704323446698,-296.67712801,0.00039879,7]
[310094387,1704323446708,-636.97,0.0003988,3]
[310094389,1704323446717,-155.86958845,0.00039889,4]
[310094391,1704323446727,-155.20390668,0.00039889,6]
[310094393,1704323446736,-89.65446231,0.00039889,4]
[310094395,1704323446749,-242.31847016,0.00039889,4]
[310094397,1704323446758,-2057.23387796,0.0003989,2]
[310094676,1704324631683,-154.8915759,0.00033184,5]
[310094678,1704324631692,-599.18468997,0.00033184,4]
[310094761,1704324638063,-974.40273414,0.00033184,4]
[310094763,1704324638073,-166.6666669,0.00033185,2]
[310094765,1704324638082,-435.94200669,0.00033341,2]
[310094839,1704324640828,-264.89018863,0.00033341,2]
[310094874,1704324645849,-821.73410159,0.00033341,2]
[310095198,1704325845969,-154.8915759,0.00028359,2]
[310095199,1704325845979,-154.8915759,0.00028359,4]
[310095200,1704325845989,-1397.49211673,0.0002836,2]
[310095237,1704326141110,245.62976884,0.00025499,2]
[310095238,1704326144118,154.8915759,0.00025499,2]
[310095239,1704326150176,1193.2978632,0.00025499,2]
[310095240,1704326155504,154.8915759,0.00025499,4]
[310095241,1704326156563,1238.07238046,0.00025499,2]
[310095242,1704326160395,154.8915759,0.00025499,2]
[310095243,1704326164250,271.49801537,0.00025499,2]
[310095244,1704326164554,2031.60443603,0.00025499,2]
[310095245,1704326168702,235.42779406,0.00025499,2]
[310095246,1704326185177,212.61910187,0.00025499,2]
[310095247,1704326213538,2997.40556678,0.00025499,2]
[310095248,1704326217421,2076.07378809,0.00025499,2]
[310095249,1704326222120,618.56145052,0.00025499,2]
[310095250,1704326222625,154.8915759,0.00025499,2]
[310095251,1704326224014,154.8915759,0.00025499,4]
[310095252,1704326233369,2230.35943177,0.00025499,2]
[310095253,1704326236149,618.56145052,0.00025499,2]
[310095254,1704326244383,154.8915759,0.00025499,2]
[310095255,1704326252203,808.765353,0.00025499,2]
[310095256,1704326255684,154.8915759,0.00022949,2]
[310095257,1704326258135,303.73572991,0.00025499,2]
[310095258,1704326259675,210.94126014,0.00025499,2]
[310095259,1704326268212,808.765353,0.00025499,2]
[310095260,1704326272194,166.30807142,0.00022949,2]
[310095261,1704326286207,342.71485371,0.00025499,2]
[310095269,1704326366629,2196.28246608,0.00025499,7]
[310095270,1704326522456,154.8915759,0.00025499,2]
[310095271,1704326523737,273.13997523,0.00025499,2]
[310095272,1704326532554,154.8915759,0.00025499,4]
[310095273,1704326548565,154.8915759,0.00023507,4]
[310095274,1704326565047,154.8915759,0.00023507,4]
[310095275,1704326583133,154.8915759,0.00023507,4]
[310095276,1704326599068,154.8915759,0.00023507,4]
[310095277,1704326619559,154.8915759,0.00023507,4]
[310095278,1704326637668,154.8915759,0.00023507,4]
[310095279,1704326657566,154.8915759,0.00023507,4]
[310095280,1704326676279,154.8915759,0.00023507,4]
[310095281,1704326683149,200.49153218,0.00025499,2]
[310095282,1704326696098,154.8915759,0.00023507,4]
[310095283,1704326714082,154.8915759,0.00023507,4]
[310095284,1704326736576,154.8915759,0.00023507,4]
[310095285,1704326754777,154.8915759,0.00023507,4]
[310095286,1704326772611,154.8915759,0.00023507,4]
[310095287,1704326789216,154.8915759,0.00023507,4]
[310095288,1704326813089,154.8915759,0.00023507,4]
[310095289,1704326835084,154.8915759,0.00023507,4]
[310095290,1704326839180,378.0749275,0.00024777,2]
[310095291,1704326855734,154.8915759,0.00023507,4]
[310095292,1704326862814,212.61910187,0.00025499,2]
[310095293,1704326871593,154.8915759,0.00023507,4]
[310095294,1704326872883,170.1709713,0.00025499,2]
[310095295,1704326889590,154.8915759,0.00023507,4]
[310095296,1704326905615,154.8915759,0.00023507,4]
[310095297,1704326924235,154.8915759,0.00023507,4]
[310095298,1704326950105,154.8915759,0.00023507,4]
[310095300,1704326970593,154.8915759,0.00023505,4]
[310095301,1704326977235,24900.0,0.00024816,2]
[310095302,1704326988600,154.8915759,0.00023505,4]
[310095303,1704327003186,683.05428955,0.00024811,2]
[310095304,1704327004605,154.8915759,0.00023505,4]
[310095305,1704327021093,683.05428955,0.00024227,2]
[310095306,1704327022612,154.8915759,0.00022952,4]
[310095307,1704327029601,5000.0,0.00024737,5]
[310095349,1704327032144,-675.8919533,0.00025502,2]
[310095351,1704327032155,-154.92253873,0.00025502,2]
[310095353,1704327032165,-154.90705577,0.00025502,2]
[310095355,1704327032174,-3902.13958521,0.00025502,2]
[310095357,1704327032184,-2990.08384051,0.00025502,2]
[310095359,1704327032194,-309.62844586,0.00025502,2]
[310095361,1704327032204,-4803.68452735,0.00025503,2]
[310095363,1704327032214,-2027.03693589,0.00025503,2]
[310095365,1704327032225,-13673.02936715,0.00025504,2]
[310095367,1704327032234,-1576.20853557,0.00025504,2]
[310095368,1704327032244,-1193.2978632,0.00025504,2]
[310095369,1704327032254,-2031.60443603,0.00025504,2]
[310095370,1704327032263,-524.84202363,0.00025505,2]
[310095372,1704327032273,-212.61910187,0.00025505,2]
[310095374,1704327032282,-1029.00208641,0.00025505,2]
[310095375,1704327032292,-18188.25401703,0.00025505,2]
[310095398,1704327038341,-154.8915759,0.00025501,2]
[310095399,1704327038351,-1287.90208924,0.00025502,2]
[310095400,1704327038360,-154.93802479,0.00025502,2]
[310095401,1704327038370,-154.92256659,0.00025503,2]
[310095402,1704327038380,-162.4738658,0.00025503,2]
[310095403,1704327038389,-2643.59735401,0.00025505,2]
[310095404,1704327038399,-7544.16505711,0.00025506,2]
[310095405,1704327038408,-198.55633635,0.00025506,2]
[310095406,1704327038417,-300.83380095,0.00025506,2]
[310095407,1704327038427,-273.13997523,0.00025507,2]
[310095409,1704327038436,-154.8915759,0.00025507,2]
[310095411,1704327038446,-154.8915759,0.00025511,2]
[310095413,1704327038455,-343.43501932,0.00025513,2]
[310095415,1704327038464,-797.98,0.00026109,3]
[310095417,1704327038473,-596.13,0.0002611,3]
[310095419,1704327038483,-154.90705577,0.00026117,2]
[310095421,1704327038493,-524.67872739,0.00026117,2]
[310095423,1704327038503,-154.90705577,0.00026117,2]
[310095425,1704327038513,-154.90705577,0.00026118,2]
[310095427,1704327038522,-4778.86931745,0.00026118,2]
[310095429,1704327038532,-2067.23046819,0.00026119,2]
[310095431,1704327038541,-2097.15281013,0.00026119,2]
[310095433,1704327038550,-394.96400341,0.00026119,2]
[310095435,1704327038559,-323.10508486,0.00026119,2]
[310095437,1704327038569,-309.6594025,0.00026119,2]
[310095439,1704327038579,-260.47439741,0.00026119,2]
[310095441,1704327038588,-227.3193674,0.0002612,2]
[310095443,1704327038597,-10473.05577926,0.0002612,2]
[310095445,1704327038606,-156.5050375,0.00026546,2]
[310095447,1704327038616,-300.0,0.0002836,2]
[310095449,1704327038625,-701.58393241,0.0002836,2]
[310095451,1704327038634,-17290.19805688,0.0002836,2]
[310095453,1704327038644,-399.67207702,0.0002836,2]
[310095455,1704327038653,-1608.50960019,0.0002836,2]
[310095457,1704327038663,-155.0,0.00028499,2]
[310095459,1704327038672,-200.0,0.0002873,15]
[310095461,1704327038682,-154.85858528,0.00029398,2]
[310095464,1704327038692,-428.28,0.00029485,3]
[310095466,1704327038701,-2136.4611211,0.00029495,2]
[310095467,1704327038710,-2451.65673495,0.00029495,2]
[310095469,1704327038720,-265.05448854,0.00029495,2]
[310095471,1704327038729,-262.57549156,0.00029495,2]
[310095473,1704327038738,-187.87208053,0.00029495,2]
[310095475,1704327038749,-1234.73871984,0.00029495,2]
[310095477,1704327038759,-183.01368436,0.00029495,2]
[310095479,1704327038768,-314.73171776,0.00029495,2]
[310095481,1704327038778,-2033.26609225,0.00029495,2]
[310095483,1704327038787,-365.29294367,0.00029495,2]
[310095485,1704327038797,-179.98010465,0.00029496,2]
[310095487,1704327038806,-305.400635,0.00029497,3]
[310095489,1704327038816,-909.967102,0.00029497,2]
[310095490,1704327038825,-909.967102,0.00029497,2]
[310095491,1704327038834,-162.630381,0.00029497,2]
[310095492,1704327038843,-218.083493,0.00029497,2]
[310095493,1704327038852,-151.0,0.00029497,2]
[310095494,1704327038861,-151.0,0.00029497,2]
[310095495,1704327038870,-793.444071,0.00029497,2]
[310095496,1704327038878,-793.444071,0.00029497,2]
[310095497,1704327038888,-903.21651068,0.00029497,2]
[310095498,1704327038897,-175.08476383,0.00029497,2]
[310095499,1704327038905,-178.93462314,0.00029497,2]
[310095500,1704327038915,-163.71831345,0.00029497,7]
[310095501,1704327038981,-163.5934,0.00029497,2]
[310095502,1704327039008,-157.65902657,0.00029497,2]
[310095503,1704327039018,-155.6655669,0.00029497,2]
[310095504,1704327039028,-2823.00744961,0.00029497,2]
[310095505,1704327039037,-155.15923161,0.00029497,2]
[310095506,1704327039047,-296.79009175,0.00029497,2]
[310095507,1704327039057,-155.15680013,0.00029497,2]
[310095508,1704327039066,-189.94996206,0.00029497,2]
[310095509,1704327039075,-1598.1065857,0.00029497,2]
[310095510,1704327039085,-155.14277078,0.00029497,2]
[310095511,1704327039095,-2525.35219268,0.00029497,2]
[310095512,1704327039104,-320.61413892,0.00029497,2]
[310095513,1704327039114,-552.52248839,0.00029497,2]
[310095514,1704327039123,-36737.9819739,0.00029497,2]
[310095515,1704327039133,-182.61233074,0.00029497,2]
[310095516,1704327039143,-298.04883747,0.00029497,2]
[310095518,1704327039153,-332.64183827,0.00029497,2]
[310095519,1704327039163,-196.43819096,0.00029497,2]
[310095521,1704327039174,-311.44793912,0.00029497,2]
[310095524,1704327039184,-327.87853141,0.00029497,2]
[310095526,1704327039194,-4139.13435,0.00029497,2]
[310095528,1704327039204,-1036.04395808,0.00029497,2]
[310095530,1704327039215,-221.7827657,0.00029497,2]
[310095532,1704327039225,-641.65330945,0.00029498,2]
[310095533,1704327039236,-464.14,0.00029498,2]
[310095535,1704327039246,-432.7,0.00029498,2]
[310095538,1704327039258,-891.94,0.00029498,2]
[310095540,1704327039268,-909.967102,0.00029498,2]
[310095542,1704327039279,-909.967102,0.00029498,2]
[310095543,1704327039288,-151.0,0.00029498,2]
[310095546,1704327039298,-151.0,0.00029498,2]
[310095547,1704327039307,-793.444071,0.00029498,2]
[310095549,1704327039317,-793.444071,0.00029498,2]
[310095551,1704327039327,-909.967102,0.00029499,2]
[310095553,1704327039336,-909.967102,0.00029499,2]
[310095555,1704327039345,-151.0,0.00029499,2]
[310095557,1704327039355,-151.0,0.00029499,2]
[310095559,1704327039365,-793.444071,0.00029499,2]
[310095561,1704327039374,-793.444071,0.00029499,2]
[310095564,1704327039390,-178066.627122,0.00029499,30]
[310095568,1704327039411,-21932.37287776,0.000295,30]
[310095570,1704327039429,-909.967102,0.000295,2]
[310095573,1704327039449,-909.967102,0.000295,2]
[310095576,1704327039465,-151.0,0.000295,2]
[310095579,1704327039485,-151.0,0.000295,2]
[310095582,1704327039505,-793.444071,0.000295,2]
[310095585,1704327039521,-793.444071,0.000295,2]
[310095588,1704327039540,-788.97901961,0.000297,2]
[310095591,1704327039555,-155.0,0.00029869,2]
[310095593,1704327039573,-500.0,0.00029999,4]
[310095596,1704327039594,-500.0,0.00029999,4]
[310095599,1704327039611,-180.83399236,0.00029999,4]
[310095602,1704327039624,-500.0,0.00029999,4]
[310095604,1704327039640,-500.0,0.00029999,4]
[310095607,1704327039655,-169.58725237,0.00029999,4]
[310095609,1704327039670,-500.0,0.00029999,4]
[310095612,1704327039685,-245.21374097,0.00029999,4]
[310095614,1704327039699,-500.0,0.00029999,4]
[310095617,1704327039712,-407.17418931,0.00029999,4]
[310095619,1704327039726,-600.45969412,0.00029999,4]
[310095622,1704327039741,-500.0,0.00029999,4]
[310095624,1704327039755,-309.67484219,0.0003,2]
[310095627,1704327039770,-7025.05114454,0.0003,4]
[310095629,1704327039783,-638.44894353,0.0003,4]
[310095631,1704327039797,-2129.74279197,0.0003,4]